[Event "Catalan Youth Championship 2024"]
[Site "Cambrils"]
[Date "2024.03.28"]
[Round "9.20"]
[White "Porta Isant, Lluis"]
[Black "Vinuesa Sorli, Ruben"]
[Result "1-0"]
[ECO "C68"]
[WhiteElo "2115"]
[BlackElo "1996"]
[Annotator "RC"]
[PlyCount "103"]
[EventDate "2024.03.13"]
[EventType "swiss"]
[EventCountry "ESP"]
[SourceTitle "playchess.com"]
[Source "ChessBase"]
[SourceQuality "1"]
[TimeControl "5400+30"]

1. e4 {[%emt 0:00:47]} e5 {[%emt 0:00:13]} 2. Nf3 {[%emt 0:00:16]} Nc6 {[%emt 0:00:12]} 3. Bb5 {[%emt 0:02:05]} a6 {[%emt 0:00:13]} 4. Bxc6 {[%emt 0:00:30]} dxc6 {[%emt 0:00:26]} 5. O-O {[%emt 0:00:06]} Bd6 {[%emt 0:00:41]} 6. d4 {[%emt 0:01:18]} exd4 {[%emt 0:00:22]} 7. Qxd4 {[%emt 0:00:39]} f6 {[%emt 0:00:27]} 8. Re1 {[%emt 0:07:22]} Be6 {[%emt 0:06:51]} 9. e5 {[%emt 0:10:15]} Bxe5 {[%emt 0:01:46]} 10. Qh4 {[%emt 0:06:02]} Qe7 {[%emt 0:27:08]} 11. Nc3 {[%emt 0:02:23]} Bxc3 {[%emt 0:07:22]} 12. bxc3 {[%emt 0:00:27]} O-O-O {[%emt 0:00:30]} 13. Qe4 {[%emt 0:06:17]} Re8 {[%emt 0:01:43]} 14. Bf4 {[%emt 0:03:03]} g5 {[%emt 0:21:32]} 15. Bg3 {[%emt 0:01:57]} h5 {[%emt 0:02:14]} 16. Qd4 {[%emt 0:00:53]} c5 {[%emt 0:03:05]} 17. Qe4 {[%emt 0:05:18]} h4 {[%emt 0:02:15]} 18. Rab1 {[%emt 0:00:06]} c6 {[%emt 0:01:10]} 19. Bb8 {[%emt 0:02:42]} Kxb8 {[%emt 0:04:14]} 20. Qxc6 {[%emt 0:00:30]} Rh7 {[%emt 0:00:14]} 21. Rxb7+ {[%emt 0:01:32]} Qxb7 {[%emt 0:01:30]} 22. Qxe8+ {[%emt 0:00:34]} Bc8 {[%emt 0:01:03]} 23. Qxg8 {[%emt 0:00:10]} h3 {[%emt 0:01:44]} 24. Qb3 {[%emt 0:03:37]} g4 {[%emt 0:03:03]} 25. Nd2 {[%emt 0:01:14]} Ka8 {[%emt 0:06:07]} 26. Qxb7+ {[%emt 0:02:45]} Bxb7 {[%emt 0:00:01]} 27. g3 {[%emt 0:01:06]} Bg2 {[%emt 0:07:54]} 28. f3 {[%emt 0:03:51]} Rd7 {[%emt 0:00:00]} 29. Nc4 {[%emt 0:00:12]} Kb7 {[%emt 0:00:00]} 30. fxg4 {[%emt 0:37:33]} Kc6 {[%emt 0:00:00]} 31. Kf2 {[%emt 0:00:00]} Bd5 {[%emt 0:00:51]} 32. Ne3 {[%emt 0:00:00]} Bxa2 {[%emt 0:00:04]} 33. Ra1 {[%emt 0:00:00]} Rd2+ {[%emt 0:02:05]} 34. Kf3 {[%emt 0:00:00]} Bd5+ {[%emt 0:00:00]} 35. Nxd5 {[%emt 0:00:00]} Kxd5 {[%emt 0:00:00]} 36. Rxa6 {[%emt 0:00:00]} Ke5 {[%emt 0:00:49]} 37. Rc6 {[%emt 0:00:00]} Rxh2 {[%emt 0:00:15]} 38. Rxc5+ {[%emt 0:00:00]} Ke6 {[%emt 0:00:14]} 39. g5 {[%emt 0:00:00]} fxg5 {[%emt 0:00:21]} 40. Kg4 {[%emt 0:00:00]} Rxc2 {[%emt 0:01:06]} 41. Kxh3 {[%emt 0:00:00]} Kf6 {[%emt 0:00:28]} 42. Kg4 {[%emt 0:00:00]} Rc1 {[%emt 0:00:35]} 43. Rc6+ {[%emt 0:00:00]} Kf7 {[%emt 0:00:33]} 44. Kxg5 {[%emt 0:00:00]} Ra1 {[%emt 0:00:02]} 45. Rc7+ {[%emt 0:00:00]} Ke6 {[%emt 0:00:29]} 46. g4 {[%emt 0:00:00]} Ra4 {[%emt 0:00:46]} 47. Kh5 {[%emt 0:00:00]} Kd6 {[%emt 0:00:18]} 48. Rf7 {[%emt 0:00:00]} Rc4 {[%emt 0:00:25]} 49. Rf3 {[%emt 0:00:00]} Ke5 {[%emt 0:00:27]} 50. g5 {[%emt 0:00:00]} Ke4 {[%emt 0:00:06]} 51. Rg3 {[%emt 0:00:00]} Kf4 {[%emt 0:00:11]} 52. Rg4+ {[%emt 0:11:00]} 1-0

[Event "Catalan Youth Championship 2024"]
[Site "Cambrils"]
[Date "2024.03.28"]
[Round "9.21"]
[White "Martin Barcelo, Carles"]
[Black "Rocamora Martorell, Ferran"]
[Result "1/2-1/2"]
[ECO "C42"]
[WhiteElo "2234"]
[BlackElo "2118"]
[Annotator "RC"]
[PlyCount "39"]
[EventDate "2024.03.13"]
[EventType "swiss"]
[EventCountry "ESP"]
[SourceTitle "playchess.com"]
[Source "ChessBase"]
[SourceQuality "1"]
[TimeControl "5400+30"]

1. e4 {[%emt 0:00:02]} e5 {[%emt 0:07:04]} 2. Nf3 {[%emt 0:00:51]} Nf6 {[%emt 0:00:51]} 3. Nxe5 {[%emt 0:00:39]} d6 {[%emt 0:00:11]} 4. Nc4 {[%emt 0:00:24]} Nxe4 {[%emt 0:00:20]} 5. Nc3 {[%emt 0:00:07]} Nf6 {[%emt 0:03:12]} 6. d4 {[%emt 0:01:52]} Be7 {[%emt 0:01:41]} 7. Bd3 {[%emt 0:01:39]} Nc6 {[%emt 0:07:49]} 8. d5 {[%emt 0:05:40]} Nb4 {[%emt 0:02:36]} 9. Be2 {[%emt 0:01:20]} c6 {[%emt 0:04:24]} 10. dxc6 {[%emt 0:15:06]} bxc6 {[%emt 0:09:35]} 11. a3 {[%emt 0:04:33]} Nbd5 {[%emt 0:06:38]} 12. Nxd5 {[%emt 0:02:18]} Nxd5 {[%emt 0:07:24]} 13. Ne3 {[%emt 0:07:16]} Nxe3 {[%emt 0:07:21]} 14. Bxe3 {[%emt 0:00:06]} O-O {[%emt 0:01:12]} 15. O-O {[%emt 0:06:07]} Bf6 {[%emt 0:02:53]} 16. Bd4 {[%emt 0:01:38]} c5 {[%emt 0:06:06]} 17. Bxf6 {[%emt 0:01:14]} Qxf6 {[%emt 0:00:13]} 18. Bf3 {[%emt 0:07:34]} Rb8 {[%emt 0:00:18]} 19. b3 {[%emt 0:00:08]} Bf5 {[%emt 0:01:24]} 20. Qd2 {[%emt 0:04:51]} 1/2-1/2

[Event "Catalan Youth Championship 2024"]
[Site "Cambrils"]
[Date "2024.03.28"]
[Round "9.22"]
[White "Serrano Batova, Vicent"]
[Black "Niubo Garcia, Arnau"]
[Result "1-0"]
[ECO "D05"]
[WhiteElo "2104"]
[BlackElo "1699"]
[Annotator "RC"]
[PlyCount "45"]
[EventDate "2024.03.13"]
[EventType "swiss"]
[EventCountry "ESP"]
[SourceTitle "playchess.com"]
[Source "ChessBase"]
[SourceQuality "1"]
[TimeControl "5400+30"]

1. d4 {[%emt 0:00:02]} d5 {[%emt 0:00:07]} 2. Nf3 {[%emt 0:00:01]} Nf6 {[%emt 0:00:18]} 3. e3 {[%emt 0:00:02]} e6 {[%emt 0:00:38]} 4. Bd3 {[%emt 0:00:28]} c5 {[%emt 0:00:34]} 5. b3 {[%emt 0:00:01]} Nc6 {[%emt 0:00:37]} 6. Bb2 {[%emt 0:00:10]} b6 {[%emt 0:01:00]} 7. Nbd2 {[%emt 0:00:07]} Bb7 {[%emt 0:01:23]} 8. O-O {[%emt 0:00:13]} Bd6 {[%emt 0:01:16]} 9. Ne5 {[%emt 0:00:07]} Ne7 {[%emt 0:04:41]} 10. Bb5+ {[%emt 0:02:08]} Kf8 {[%emt 0:03:53]} 11. Bd3 {[%emt 0:06:31]} Qc7 {[%emt 0:04:44]} 12. f4 {[%emt 0:10:48]} Nd7 {[%emt 0:14:03]} 13. Qh5 {[%emt 0:02:13]} g6 {[%emt 0:17:48]} 14. Qh6+ {[%emt 0:00:10]} Kg8 {[%emt 0:01:52]} 15. Nxd7 {[%emt 0:00:42]} Qxd7 {[%emt 0:13:39]} 16. dxc5 {[%emt 0:00:13]} d4 {[%emt 0:15:23]} 17. cxd6 {[%emt 0:00:35]} Nc6 {[%emt 0:03:19]} 18. Ne4 {[%emt 0:00:51]} Qd8 {[%emt 0:00:54]} 19. f5 {[%emt 0:00:33]} Ne5 {[%emt 0:01:48]} 20. fxe6 {[%emt 0:01:57]} Bxe4 {[%emt 0:01:30]} 21. Bxe4 {[%emt 0:00:30]} Rc8 {[%emt 0:01:58]} 22. Bd5 {[%emt 0:00:48]} Qf8 {[%emt 0:01:54]} 23. exf7+ {[%emt 0:00:08]} 1-0

[Event "Catalan Youth Championship 2024"]
[Site "Cambrils"]
[Date "2024.03.28"]
[Round "9.23"]
[White "Farre Ramirez, Mateu"]
[Black "Gomez Navais, Marcal"]
[Result "0-1"]
[ECO "B55"]
[WhiteElo "1686"]
[BlackElo "2086"]
[Annotator "RC"]
[PlyCount "80"]
[EventDate "2024.03.13"]
[EventType "swiss"]
[EventCountry "ESP"]
[SourceTitle "playchess.com"]
[Source "ChessBase"]
[SourceQuality "1"]
[TimeControl "5400+30"]

1. e4 {[%emt 0:00:04]} c5 {[%emt 0:00:04]} 2. Nf3 {[%emt 0:00:08]} d6 {[%emt 0:00:02]} 3. d4 {[%emt 0:00:14]} cxd4 {[%emt 0:00:04]} 4. Nxd4 {[%emt 0:00:13]} Nf6 {[%emt 0:00:03]} 5. Bd3 {[%emt 1:32:21]} Nc6 {[%emt 0:02:17]} 6. Nxc6 {[%emt 0:00:00]} bxc6 {[%emt 1:31:00]} 7. O-O {[%emt 0:00:00]} g6 {[%emt 0:00:00]} 8. b3 {[%emt 0:00:00]} Bg7 {[%emt 0:01:00]} 9. Bb2 {[%emt 0:00:00]} O-O {[%emt 0:00:00]} 10. Nc3 {[%emt 0:02:30]} d5 {[%emt 0:01:00]} 11. exd5 {[%emt 0:00:00]} cxd5 {[%emt 0:00:30]} 12. Na4 {[%emt 0:01:00]} Qd6 {[%emt 0:00:30]} 13. f4 {[%emt 0:00:30]} Ng4 {[%emt 0:00:30]} 14. Bxg7 {[%emt 0:00:00]} Kxg7 {[%emt 0:00:30]} 15. Qf3 {[%emt 0:01:00]} Bd7 {[%emt 0:00:00]} 16. h3 {[%emt 0:00:00]} Nf6 {[%emt 0:00:00]} 17. Nb2 {[%emt 0:01:00]} Bc6 {[%emt 0:01:30]} 18. Qe3 {[%emt 0:00:30]} a5 {[%emt 0:00:00]} 19. a4 {[%emt 0:00:00]} Nd7 {[%emt 0:01:00]} 20. Rfe1 {[%emt 0:00:00]} Rfe8 {[%emt 0:00:30]} 21. Rad1 {[%emt 0:00:00]} Qf6 {[%emt 0:00:00]} 22. Rb1 {[%emt 0:02:00]} Rac8 {[%emt 0:01:00]} 23. Qd2 {[%emt 0:00:30]} Kg8 {[%emt 0:00:30]} 24. Ba6 {[%emt 0:00:30]} Ra8 {[%emt 0:00:30]} 25. Bd3 {[%emt 0:00:00]} Nc5 {[%emt 0:00:00]} 26. Re2 {[%emt 0:01:00]} Ne6 {[%emt 0:01:00]} 27. Rf2 {[%emt 0:00:30]} Nc5 {[%emt 0:00:30]} 28. Re2 {[%emt 0:00:30]} e6 {[%emt 0:00:30]} 29. Re5 {[%emt 0:00:30]} Nd7 {[%emt 0:00:30]} 30. Ree1 {[%emt 0:00:00]} h5 {[%emt 0:00:30]} 31. Nd1 {[%emt 0:00:00]} Rec8 {[%emt 0:00:00]} 32. Nf2 {[%emt 0:01:30]} Nc5 {[%emt 0:00:00]} 33. Re5 {[%emt 0:00:30]} Bb7 {[%emt 0:01:30]} 34. Rbe1 {[%emt 0:00:00]} Ba6 {[%emt 0:00:00]} 35. Bxa6 {[%emt 0:00:00]} Rxa6 {[%emt 0:01:00]} 36. g4 {[%emt 0:01:30]} Qh4 {[%emt 0:00:00]} 37. Kg2 {[%emt 0:00:00]} Rac6 {[%emt 0:00:00]} 38. Rg5 {[%emt 0:00:09]} Ne4 {[%emt 0:00:00]} 39. Nxe4 {[%emt 0:00:15]} Rxc2 {[%emt 0:00:00]} 40. Rd1 {[%emt 0:01:04]} dxe4 {[%emt 0:00:00]} 0-1

[Event "Catalan Youth Championship 2024"]
[Site "Cambrils"]
[Date "2024.03.28"]
[Round "9.24"]
[White "Pujol Biosca, Joan"]
[Black "Navajas Alvarez, Josep"]
[Result "1/2-1/2"]
[ECO "B33"]
[WhiteElo "1979"]
[BlackElo "1989"]
[Annotator "RC"]
[PlyCount "61"]
[EventDate "2024.03.13"]
[EventType "swiss"]
[EventCountry "ESP"]
[SourceTitle "playchess.com"]
[Source "ChessBase"]
[SourceQuality "1"]
[TimeControl "5400+30"]

1. e4 {[%emt 0:00:04]} c5 {[%emt 0:00:22]} 2. Nf3 {[%emt 0:00:15]} Nc6 {[%emt 0:00:09]} 3. d4 {[%emt 0:00:11]} cxd4 {[%emt 0:00:06]} 4. Nxd4 {[%emt 0:00:11]} Nf6 {[%emt 0:00:10]} 5. Nc3 {[%emt 0:00:09]} e5 {[%emt 0:00:05]} 6. Ndb5 {[%emt 0:00:23]} d6 {[%emt 0:00:14]} 7. Nd5 {[%emt 0:00:16]} Nxd5 {[%emt 0:00:08]} 8. exd5 {[%emt 0:00:02]} Nb8 {[%emt 0:00:06]} 9. c4 {[%emt 0:00:33]} Be7 {[%emt 0:01:10]} 10. Be2 {[%emt 0:00:52]} O-O {[%emt 0:00:26]} 11. O-O {[%emt 0:00:10]} a6 {[%emt 0:00:36]} 12. Nc3 {[%emt 0:00:20]} f5 {[%emt 0:01:30]} 13. f4 {[%emt 0:00:16]} e4 {[%emt 0:09:15]} 14. Be3 {[%emt 0:05:37]} Bf6 {[%emt 0:04:09]} 15. Qc2 {[%emt 0:08:35]} Nd7 {[%emt 0:05:35]} 16. b4 {[%emt 0:01:56]} b6 {[%emt 0:03:43]} 17. Rac1 {[%emt 0:05:45]} Bb7 {[%emt 0:02:29]} 18. Qb3 {[%emt 0:02:12]} Rc8 {[%emt 0:12:16]} 19. Rfd1 {[%emt 0:10:13]} Kh8 {[%emt 0:15:35]} 20. Bf1 {[%emt 0:05:40]} g5 {[%emt 0:07:00]} 21. Ne2 {[%emt 0:03:10]} Qe7 {[%emt 0:11:32]} 22. Nd4 {[%emt 0:06:13]} gxf4 {[%emt 0:01:48]} 23. Bxf4 {[%emt 0:00:44]} Be5 {[%emt 0:04:38]} 24. Qe3 {[%emt 0:04:25]} Bxf4 {[%emt 0:03:22]} 25. Qxf4 {[%emt 0:00:06]} Qe5 {[%emt 0:00:28]} 26. Qxe5+ {[%emt 0:08:26]} Nxe5 {[%emt 0:00:09]} 27. Ne6 {[%emt 0:01:20]} Rf6 {[%emt 0:01:38]} 28. Nf4 {[%emt 0:01:53]} Rf7 {[%emt 0:01:05]} 29. Be2 {[%emt 0:04:52]} Kg7 {[%emt 0:15:16]} 30. Nh5+ {[%emt 0:30:41]} Kh8 {[%emt 0:00:30]} 31. Nf4 {[%emt 0:00:30]} 1/2-1/2